fUST/lending_fUST_20240323
["ID","MTS","AMOUNT","RATE_DAILY","PERIOD"]
[320080939,1711140430351,-532.0,0.00044,120]
[320080940,1711140430378,-1393.0,0.00044378,49]
[320080941,1711140430400,-373.30141735,0.00044446,30]
[320080942,1711140430423,-997.0,0.00044507,30]
[320080943,1711140430446,-1005.77855828,0.000449,120]
[320080944,1711140430470,-1933.54858484,0.00045,30]
[320080945,1711140430598,-2000.0,0.00045,30]
[320080946,1711140430622,-608.04,0.000453,120]
[320080947,1711140430646,-425.15175264,0.00045484,30]
[320080948,1711140430669,-2000.0,0.000455,30]
[320080949,1711140430693,-1356.41747694,0.0004558,120]
[320080950,1711140430716,-997.57558035,0.00046,90]
[320080951,1711140430741,-2000.0,0.00046,30]
[320080952,1711140430764,-425.15175264,0.00046415,30]
[320080953,1711140430786,-2000.0,0.000465,30]
[320080954,1711140430815,-997.0,0.00046849,30]
[320080955,1711140430839,-2000.0,0.00047,120]
[320080956,1711140430864,-3000.35765478,0.00047,120]
[320080957,1711140430886,-2000.0,0.00047,30]
[320080958,1711140430910,-823.355,0.00047158,120]
[320080959,1711140430933,-823.355,0.00047158,120]
[320080960,1711140430957,-823.355,0.00047158,120]
[320080961,1711140430979,-823.356,0.00047158,120]
[320080962,1711140431002,-823.356,0.00047158,120]
[320080963,1711140431024,-225.679,0.00047158,120]
[320080964,1711140431046,-225.679,0.00047158,120]
[320080965,1711140431070,-225.679,0.00047158,120]
[320080966,1711140431093,-225.679,0.00047158,120]
[320080967,1711140431116,-225.679,0.00047158,120]
[320080968,1711140431140,-1404.879444,0.00047489,120]
[320080969,1711140431164,-1148.0,0.000475,30]
[320080970,1711140431187,-1203.82916543,0.00047878,53]
[320080971,1711140431209,-700.40598325,0.000479,30]
[320080972,1711140431231,-861.64311228,0.00047919,30]
[320080973,1711140431254,-3000.0,0.00048,30]
[320080974,1711140431277,-373.30141735,0.00048917,30]
[320080975,1711140431301,-2000.0,0.00049,68]
[320080976,1711140431324,-2988.490159,0.0004901,68]
[320080977,1711140431348,-425.15175264,0.0004916,30]
[320080978,1711140431371,-425.15175264,0.00049209,30]
[320080979,1711140431396,-997.0,0.00049315,30]
[320080980,1711140431419,-427.28291829,0.00049315,30]
[320080981,1711140431443,-997.0,0.00049315,30]
[320080982,1711140431466,-997.0,0.00049315,30]
[320080983,1711140431489,-997.0,0.00049315,30]
[320080984,1711140431512,-4836.92985828,0.000499,30]
[320080985,1711140431534,-1000.0,0.000499,120]
[320080986,1711140431557,-10000.0,0.000499,120]
[320080987,1711140431580,-589.31793464,0.000499,120]
[320080988,1711140431602,-373.30141735,0.0004999,30]
[320080989,1711140431625,-160.04343308,0.0005,60]
[320080990,1711140431648,-509.699525,0.0005,120]
[320080991,1711140431670,-5000.0,0.0005,30]
[320080992,1711140431692,-184.0,0.0005,120]
[320080993,1711140431714,-16615.8148705,0.0005,120]
[320080994,1711140431735,-373.30141735,0.00050774,60]
[320080995,1711140431758,-373.30141735,0.00050891,60]
[320080996,1711140431779,-373.30141735,0.00050964,60]
[320080997,1711140431803,-997.0,0.00051781,30]
[320080998,1711140431826,-997.0,0.00051781,30]
[320080999,1711140431850,-1000.0,0.00051999,120]
[320081000,1711140431875,-20000.0,0.00052,32]
[320081001,1711140431898,-500.0,0.00052054,120]
[320081701,1711140638710,-154.9690062,0.00022278,2]
[320081703,1711140638720,-210.16491797,0.00022279,2]
[320081705,1711140638729,-172.980765,0.0002228,2]
[320081707,1711140638740,-1300.0,0.00022981,2]
[320081709,1711140638751,-179.25533772,0.00023082,2]
[320081711,1711140638763,-1571.32607788,0.00023172,2]
[320081714,1711140638779,-2746.34065419,0.00023172,2]
[320081716,1711140638790,-987.38885002,0.00023173,2]
[320081718,1711140638800,-24900.0,0.00023174,2]
[320081720,1711140638809,-617.12366123,0.0002359,2]
[320081722,1711140638819,-779.02737889,0.0002359,2]
[320081724,1711140638829,-275.42113425,0.0002359,2]
[320081726,1711140638838,-815.66428976,0.00023591,2]
[320081727,1711140638848,-174.289409,0.00023817,2]
[320081729,1711140638858,-405.22890215,0.000245,3]
[320081731,1711140638868,-159.84517134,0.00024557,2]
[320081734,1711140638879,-756.58285204,0.00024557,2]
[320081735,1711140638888,-358.95943651,0.00024655,2]
[320081737,1711140638898,-215.89741008,0.00024655,2]
[320081740,1711140638907,-234.7111418,0.00024655,2]
[320081742,1711140638917,-1380.57420865,0.00024655,2]
[320081744,1711140638926,-272.57528783,0.00024656,2]
[320081746,1711140638935,-478.29656293,0.00024656,2]
[320081748,1711140638944,-500.0,0.00024657,2]
[320081749,1711140638953,-500.0,0.00024657,2]
[320081752,1711140638963,-500.0,0.00024657,2]
[320081754,1711140638972,-591.71,0.00024657,2]
[320081756,1711140638982,-500.0,0.00024657,2]
[320081758,1711140638991,-154.87609912,0.00024657,2]
[320081760,1711140639000,-500.0,0.00024657,2]
[320081762,1711140639010,-500.0,0.00024657,2]
[320081763,1711140639023,-500.0,0.00024657,2]
[320081765,1711140639032,-500.0,0.00024657,2]
[320081767,1711140639041,-500.0,0.00024657,2]
[320081770,1711140639050,-868.91,0.00024657,2]
[320081772,1711140639060,-544.53,0.00024657,2]
[320081774,1711140639069,-297.11841611,0.00024657,2]
[320081776,1711140639078,-500.0,0.00024657,2]
[320081777,1711140639088,-500.0,0.00024657,2]
[320081779,1711140639097,-500.0,0.00024657,2]
[320081781,1711140639106,-705.32,0.00024657,2]
[320081783,1711140639116,-500.0,0.00024657,2]
[320081786,1711140639125,-500.0,0.00024657,2]
[320081787,1711140639134,-500.0,0.00024657,2]
[320081789,1711140639143,-500.0,0.00024657,2]
[320081791,1711140639153,-2363.39,0.00024657,2]
[320081793,1711140639161,-500.0,0.00024657,2]
[320081795,1711140639171,-500.0,0.00024657,2]
[320081797,1711140639180,-500.0,0.00024657,2]
[320081799,1711140639189,-701.03,0.00024657,2]
[320081801,1711140639198,-500.0,0.00024657,2]
[320081803,1711140639207,-500.0,0.00024657,2]
[320081806,1711140639216,-1039.22,0.00024657,2]
[320081807,1711140639225,-500.0,0.00024657,2]
[320081810,1711140639235,-1030.06,0.00024657,2]
[320081812,1711140639244,-500.0,0.00024657,2]
[320081814,1711140639253,-500.0,0.00024657,2]
[320081816,1711140639265,-500.0,0.00024657,2]
[320081817,1711140639274,-666.33,0.00024657,2]
[320081819,1711140639283,-500.0,0.00024657,2]
[320081821,1711140639293,-500.0,0.00024657,2]
[320081823,1711140639303,-500.0,0.00024657,2]
[320081825,1711140639313,-1265.28,0.00024657,2]
[320081827,1711140639322,-500.0,0.00024657,2]
[320081829,1711140639331,-500.0,0.00024657,2]
[320081831,1711140639341,-500.0,0.00024657,2]
[320081833,1711140639350,-500.0,0.00024657,2]
[320081835,1711140639360,-500.0,0.00024657,2]
[320081837,1711140639370,-500.0,0.00024657,2]
[320081839,1711140639379,-568.44862495,0.00024657,2]
[320081841,1711140639394,-1540.11,0.00024657,2]
[320081844,1711140639403,-451.63017508,0.00024657,2]
[320081845,1711140639412,-500.0,0.00024657,2]
[320081848,1711140639424,-500.0,0.00024657,2]
[320081850,1711140639433,-1430.37,0.00024657,2]
[320081852,1711140639442,-500.0,0.00024657,2]
[320081854,1711140639452,-500.0,0.00024657,2]
[320081856,1711140639462,-2260.02,0.00024657,2]
[320081858,1711140639472,-22431.98,0.00024657,2]
[320081860,1711140639481,-976.3,0.00024657,2]
[320081862,1711140639490,-2773.5,0.00024657,2]
[320081864,1711140639499,-1593.63,0.00024657,2]
[320081865,1711140639508,-500.0,0.00024657,2]
[320081867,1711140639520,-500.0,0.00024657,2]
[320081869,1711140639530,-500.0,0.00024657,2]
[320081871,1711140639539,-500.0,0.00024657,2]
[320081873,1711140639548,-500.0,0.00024657,2]
[320081875,1711140639558,-577.1,0.00024657,2]
[320081877,1711140639567,-1360.28,0.00024657,2]
[320081879,1711140639577,-506.44,0.00024657,2]
[320081881,1711140639587,-14810.39,0.00024657,2]
[320081883,1711140639597,-540.37427772,0.00024657,2]
[320081885,1711140639607,-500.0,0.00024657,2]
[320081887,1711140639617,-506.13,0.00024657,2]
[320081890,1711140639626,-1708.06,0.00024657,2]
[320081892,1711140639636,-577.95244467,0.00024657,2]
[320081894,1711140639646,-1884.15,0.00024657,2]
[320081895,1711140639655,-1130.23,0.00024657,2]
[320081897,1711140639665,-1200.54,0.00024657,2]
[320081899,1711140639675,-500.0,0.00024657,2]
[320081901,1711140639684,-500.0,0.00024657,2]
[320081903,1711140639694,-500.0,0.00024657,2]
[320081905,1711140639703,-318.33077286,0.00024657,2]
[320081907,1711140639712,-500.0,0.00024657,2]
[320081909,1711140639721,-16865.46,0.00024657,2]
[320081911,1711140639730,-17109.37,0.00024657,2]
[320081913,1711140639739,-500.0,0.00024657,2]
[320081915,1711140639749,-500.0,0.00024657,2]
[320081917,1711140639758,-802.9,0.00024657,2]
[320081919,1711140639770,-500.0,0.00024657,2]
[320081920,1711140639779,-500.0,0.00024657,2]
[320081921,1711140639788,-4015.82,0.00024657,2]
[320081922,1711140639797,-500.0,0.00024657,2]
[320081923,1711140639806,-500.0,0.00024657,2]
[320081924,1711140639815,-1572.16,0.00024657,2]
[320081925,1711140639824,-2739.61,0.00024657,2]
[320081926,1711140639834,-500.0,0.00024657,2]
[320081927,1711140639843,-500.0,0.00024657,2]
[320081928,1711140639852,-500.0,0.00024657,2]
[320081929,1711140639861,-500.0,0.00024657,2]
[320081930,1711140639871,-20662.85,0.00024657,2]
[320081931,1711140639880,-500.0,0.00024657,2]
[320081932,1711140639889,-500.0,0.00024657,2]
[320081933,1711140639898,-500.0,0.00024657,2]
[320081934,1711140639907,-1173.64,0.00024657,2]
[320081935,1711140639916,-7084.1,0.00024657,2]
[320081936,1711140639925,-500.0,0.00024657,2]
[320081937,1711140639935,-568.95,0.00024657,2]
[320081938,1711140639944,-666.79,0.00024657,2]
[320081939,1711140639953,-154.87609912,0.00024657,2]
[320081940,1711140639962,-500.0,0.00024657,2]
[320081941,1711140639971,-3463.99,0.00024657,2]
[320081942,1711140639980,-500.0,0.00024657,2]
[320081943,1711140639990,-1480.2,0.00024657,2]
[320081945,1711140640000,-500.0,0.00024657,2]
[320081947,1711140640009,-1231.74,0.00024657,2]
[320081949,1711140640021,-1399.16,0.00024657,2]
[320081951,1711140640030,-756.58285201,0.00024831,2]
[320081953,1711140640039,-24917.93753752,0.00025105,2]
[320081956,1711140640048,-756.58285201,0.00025105,2]
[320081958,1711140640057,-500.0,0.00025205,2]
[320081960,1711140640066,-591.71,0.00025205,2]
[320081962,1711140640075,-500.0,0.00025205,2]
[320081964,1711140640085,-500.0,0.00025205,2]
[320081966,1711140640096,-500.0,0.00025205,2]
[320081968,1711140640105,-500.0,0.00025205,2]
[320081971,1711140640114,-500.0,0.00025205,2]
[320081974,1711140640123,-868.91,0.00025205,2]
[320081977,1711140640132,-544.53,0.00025205,2]
[320081979,1711140640142,-500.0,0.00025205,2]
[320081981,1711140640151,-500.0,0.00025205,2]
[320081983,1711140640160,-500.0,0.00025205,2]
[320081985,1711140640170,-705.32,0.00025205,2]
[320081987,1711140640179,-500.0,0.00025205,2]
[320081989,1711140640188,-500.0,0.00025205,2]
[320081991,1711140640198,-500.0,0.00025205,2]
[320081993,1711140640208,-500.0,0.00025205,2]
[320081995,1711140640217,-2363.39,0.00025205,2]
[320081997,1711140640226,-500.0,0.00025205,2]
[320081999,1711140640235,-500.0,0.00025205,2]
[320082001,1711140640244,-500.0,0.00025205,2]
[320082004,1711140640252,-701.03,0.00025205,2]
[320082008,1711140640261,-500.0,0.00025205,2]
[320082010,1711140640274,-500.0,0.00025205,2]
[320082012,1711140640283,-1039.22,0.00025205,2]
[320082014,1711140640292,-500.0,0.00025205,2]
[320082016,1711140640301,-1030.06,0.00025205,2]
[320082018,1711140640310,-500.0,0.00025205,2]
[320082020,1711140640319,-500.0,0.00025205,2]
[320082022,1711140640328,-500.0,0.00025205,2]
[320082024,1711140640337,-666.33,0.00025205,2]
[320082026,1711140640346,-500.0,0.00025205,2]
[320082029,1711140640355,-500.0,0.00025205,2]
[320082031,1711140640366,-500.0,0.00025205,2]
[320082033,1711140640375,-1265.28,0.00025205,2]
[320082035,1711140640385,-500.0,0.00025205,2]
[320082037,1711140640395,-500.0,0.00025205,2]
[320082039,1711140640404,-292.72504949,0.00025205,2]
[320082041,1711140640413,-500.0,0.00025205,2]
[320082043,1711140640422,-500.0,0.00025205,2]
[320082045,1711140640431,-500.0,0.00025205,2]
[320082047,1711140640440,-1540.11,0.00025205,2]
[320082049,1711140640450,-500.0,0.00025205,2]
[320082050,1711140640459,-500.0,0.00025205,2]
[320082052,1711140640469,-1430.37,0.00025205,2]
[320082055,1711140640479,-500.0,0.00025205,2]
[320082057,1711140640488,-500.0,0.00025205,2]
[320082058,1711140640498,-2260.02,0.00025205,2]
[320082060,1711140640507,-22431.98,0.00025205,2]
[320082062,1711140640519,-976.3,0.00025205,2]
[320082064,1711140640528,-2773.5,0.00025205,2]
[320082066,1711140640538,-1593.63,0.00025205,2]
[320082068,1711140640547,-500.0,0.00025205,2]
[320082070,1711140640557,-500.0,0.00025205,2]
[320082072,1711140640567,-500.0,0.00025205,2]
[320082074,1711140640575,-500.0,0.00025205,2]
[320082076,1711140640585,-577.1,0.00025205,2]
[320082078,1711140640594,-1360.28,0.00025205,2]
[320082080,1711140640603,-506.44,0.00025205,2]
[320082082,1711140640613,-14810.39,0.00025205,2]
[320082084,1711140640622,-500.0,0.00025205,2]
[320082086,1711140640631,-506.13,0.00025205,2]
[320082088,1711140640639,-1708.06,0.00025205,2]
[320082090,1711140640648,-1884.15,0.00025205,2]
[320082092,1711140640657,-1130.23,0.00025205,2]
[320082094,1711140640667,-1200.54,0.00025205,2]
[320082096,1711140640676,-500.0,0.00025205,2]
[320082098,1711140640685,-500.0,0.00025205,2]
[320082100,1711140640694,-500.0,0.00025205,2]
[320082102,1711140640704,-16865.46,0.00025205,2]
[320082104,1711140640713,-17109.37,0.00025205,2]
[320082106,1711140640723,-500.0,0.00025205,2]
[320082108,1711140640732,-802.9,0.00025205,2]
[320082110,1711140640741,-500.0,0.00025205,2]
[320082112,1711140640750,-264.11916319,0.00025205,2]
[320082114,1711140640759,-4015.82,0.00025205,2]
[320082116,1711140640769,-500.0,0.00025205,2]
[320082118,1711140640778,-500.0,0.00025205,2]
[320082120,1711140640787,-1572.16,0.00025205,2]
[320082122,1711140640797,-2739.61,0.00025205,2]
[320082124,1711140640806,-500.0,0.00025205,2]
[320082126,1711140640815,-500.0,0.00025205,2]
[320082139,1711140640824,-498.69575726,0.00025205,2]
[320082142,1711140640947,-20662.85,0.00025205,2]
[320082144,1711140640956,-500.0,0.00025205,2]
[320082146,1711140640966,-500.0,0.00025205,2]
[320082148,1711140640975,-1173.64,0.00025205,2]
[320082150,1711140640984,-7084.1,0.00025205,2]
[320082152,1711140640994,-500.0,0.00025205,2]
[320082154,1711140641004,-568.95,0.00025205,2]
[320082156,1711140641014,-666.79,0.00025205,2]
[320082158,1711140641025,-500.0,0.00025205,2]
[320082159,1711140641034,-3463.99,0.00025205,2]
[320082161,1711140641044,-500.0,0.00025205,2]
[320082163,1711140641054,-1480.2,0.00025205,2]
[320082165,1711140641063,-500.0,0.00025205,2]
[320082168,1711140641072,-1231.74,0.00025205,2]
[320082169,1711140641081,-1399.16,0.00025205,2]
[320082172,1711140641091,-756.58285201,0.00025379,2]
[320082173,1711140641100,-194.35359503,0.00025538,2]
[320082175,1711140641109,-164.5590068,0.00025578,2]
[320082177,1711140641118,-151.80276999,0.00025589,2]
[320082179,1711140641127,-2465.79716642,0.00025653,2]
[320082181,1711140641136,-756.58285201,0.00025653,2]
[320082183,1711140641145,-281.56254263,0.00025753,2]
[320082185,1711140641155,-591.71,0.00025753,2]
[320082187,1711140641165,-500.0,0.00025753,2]
[320082189,1711140641174,-500.0,0.00025753,2]
[320082191,1711140641183,-500.0,0.00025753,2]
[320082193,1711140641192,-500.0,0.00025753,2]
[320082195,1711140641201,-500.0,0.00025753,2]
[320082197,1711140641211,-868.91,0.00025753,2]
[320082199,1711140641220,-544.53,0.00025753,2]
[320082201,1711140641229,-500.0,0.00025753,2]
[320082203,1711140641239,-500.0,0.00025753,2]
[320082205,1711140641248,-705.32,0.00025753,2]
[320082207,1711140641257,-500.0,0.00025753,2]
[320082209,1711140641269,-500.0,0.00025753,2]
[320082211,1711140641279,-500.0,0.00025753,2]
[320082213,1711140641289,-500.0,0.00025753,2]
[320082215,1711140641299,-2363.39,0.00025753,2]
[320082217,1711140641309,-500.0,0.00025753,2]
[320082219,1711140641318,-500.0,0.00025753,2]
[320082221,1711140641328,-500.0,0.00025753,2]
[320082223,1711140641337,-701.03,0.00025753,2]
[320082226,1711140641348,-500.0,0.00025753,2]
[320082228,1711140641359,-500.0,0.00025753,2]
[320082229,1711140641369,-1039.22,0.00025753,2]
[320082231,1711140641379,-500.0,0.00025753,2]
[320082233,1711140641390,-1030.06,0.00025753,2]
[320082236,1711140641399,-500.0,0.00025753,2]
[320082238,1711140641410,-500.0,0.00025753,2]
[320082240,1711140641419,-500.0,0.00025753,2]
[320082241,1711140641428,-666.33,0.00025753,2]
[320082244,1711140641438,-500.0,0.00025753,2]
[320082245,1711140641448,-500.0,0.00025753,2]
[320082247,1711140641457,-500.0,0.00025753,2]
[320082250,1711140641467,-1265.28,0.00025753,2]
[320082252,1711140641476,-500.0,0.00025753,2]
[320082254,1711140641486,-347.26720316,0.00025753,2]
[320082255,1711140641494,-500.0,0.00025753,2]
[320082257,1711140641504,-500.0,0.00025753,2]
[320082259,1711140641513,-500.0,0.00025753,2]
[320082261,1711140641525,-1540.11,0.00025753,2]
[320082264,1711140641534,-500.0,0.00025753,2]
[320082266,1711140641544,-500.0,0.00025753,2]
[320082267,1711140641553,-1430.37,0.00025753,2]
[320082270,1711140641563,-500.0,0.00025753,2]
[320082271,1711140641572,-500.0,0.00025753,2]
[320082273,1711140641581,-2260.02,0.00025753,2]
[320082276,1711140641591,-22431.98,0.00025753,2]
[320082277,1711140641600,-976.3,0.00025753,2]
[320082279,1711140641610,-2773.5,0.00025753,2]
[320082281,1711140641620,-1593.63,0.00025753,2]
[320082283,1711140641629,-500.0,0.00025753,2]
[320082285,1711140641638,-500.0,0.00025753,2]
[320082287,1711140641648,-500.0,0.00025753,2]
[320082289,1711140641657,-500.0,0.00025753,2]
[320082291,1711140641665,-577.1,0.00025753,2]
[320082293,1711140641674,-1360.28,0.00025753,2]
[320082295,1711140641683,-506.44,0.00025753,2]
[320082297,1711140641692,-14810.39,0.00025753,2]
[320082299,1711140641701,-500.0,0.00025753,2]
[320082301,1711140641710,-506.13,0.00025753,2]
[320082303,1711140641719,-1708.06,0.00025753,2]
[320082305,1711140641728,-1884.15,0.00025753,2]
[320082307,1711140641738,-1130.23,0.00025753,2]
[320082309,1711140641747,-1200.54,0.00025753,2]
[320082311,1711140641756,-500.0,0.00025753,2]
[320082313,1711140641768,-500.0,0.00025753,2]
[320082315,1711140641778,-500.0,0.00025753,2]
[320082317,1711140641787,-16865.46,0.00025753,2]
[320082319,1711140641796,-17109.37,0.00025753,2]
[320082321,1711140641806,-500.0,0.00025753,2]
[320082323,1711140641815,-802.9,0.00025753,2]
[320082325,1711140641824,-500.0,0.00025753,2]
[320082327,1711140641833,-4015.82,0.00025753,2]
[320082329,1711140641843,-500.0,0.00025753,2]
[320082331,1711140641852,-500.0,0.00025753,2]
[320082332,1711140641861,-1572.16,0.00025753,2]
[320082335,1711140641871,-2739.61,0.00025753,2]
[320082336,1711140641879,-500.0,0.00025753,2]
[320082338,1711140641889,-500.0,0.00025753,2]
[320082341,1711140641898,-20662.85,0.00025753,2]
[320082343,1711140641908,-500.0,0.00025753,2]
[320082344,1711140641917,-500.0,0.00025753,2]
[320082346,1711140641926,-1173.64,0.00025753,2]
[320082348,1711140641935,-7084.1,0.00025753,2]
[320082350,1711140641945,-568.95,0.00025753,2]
[320082352,1711140641954,-666.79,0.00025753,2]
[320082354,1711140641963,-500.0,0.00025753,2]
[320082356,1711140641973,-3463.99,0.00025753,2]
[320082359,1711140641982,-500.0,0.00025753,2]
[320082360,1711140641992,-500.0,0.00025753,2]
[320082363,1711140642001,-1480.2,0.00025753,2]
[320082365,1711140642011,-1231.74,0.00025753,2]
[320082366,1711140642023,-1399.16,0.00025753,2]
[320082368,1711140642032,-1500.0,0.00026,2]
[320082370,1711140642041,-306.0,0.00026178,2]
[320082372,1711140642050,-591.71,0.00026301,2]
[320082374,1711140642059,-553.7,0.00026301,2]
[320082376,1711140642068,-500.0,0.00026301,2]
[320082378,1711140642078,-500.0,0.00026301,2]
[320082380,1711140642086,-500.0,0.00026301,2]
[320082382,1711140642095,-500.0,0.00026301,2]
[320082384,1711140642104,-868.91,0.00026301,2]
[320082386,1711140642114,-544.53,0.00026301,2]
[320082388,1711140642124,-500.0,0.00026301,2]
[320082390,1711140642133,-500.0,0.00026301,2]
[320082392,1711140642142,-705.32,0.00026301,2]
[320082394,1711140642151,-500.0,0.00026301,2]
[320082396,1711140642161,-500.0,0.00026301,2]
[320082398,1711140642170,-500.0,0.00026301,2]
[320082400,1711140642179,-500.0,0.00026301,2]
[320082402,1711140642188,-2363.39,0.00026301,2]
[320082404,1711140642199,-500.0,0.00026301,2]
[320082406,1711140642209,-500.0,0.00026301,2]
[320082408,1711140642218,-500.0,0.00026301,2]
[320082411,1711140642228,-701.03,0.00026301,2]
[320082413,1711140642237,-500.0,0.00026301,2]
[320082415,1711140642246,-500.0,0.00026301,2]
[320082416,1711140642255,-1039.22,0.00026301,2]
[320082418,1711140642265,-500.0,0.00026301,2]
[320082419,1711140642276,-1030.06,0.00026301,2]
[320082420,1711140642285,-500.0,0.00026301,2]
[320082421,1711140642295,-500.0,0.00026301,2]
[320082422,1711140642305,-500.0,0.00026301,2]
[320082423,1711140642315,-666.33,0.00026301,2]
[320082424,1711140642326,-500.0,0.00026301,2]
[320082425,1711140642335,-500.0,0.00026301,2]
[320082427,1711140642344,-500.0,0.00026301,2]
[320082429,1711140642354,-1265.28,0.00026301,2]
[320082431,1711140642366,-500.0,0.00026301,2]
[320082433,1711140642376,-500.0,0.00026301,2]
[320082435,1711140642385,-500.0,0.00026301,2]
[320082437,1711140642394,-471.19100394,0.00026301,2]
[320082439,1711140642403,-1540.11,0.00026301,2]
[320082441,1711140642412,-500.0,0.00026301,2]
[320082443,1711140642421,-500.0,0.00026301,2]
[320082444,1711140642430,-1430.37,0.00026301,2]
[320082446,1711140642439,-500.0,0.00026301,2]
[320082448,1711140642450,-500.0,0.00026301,2]
[320082451,1711140642459,-2260.02,0.00026301,2]
[320082453,1711140642468,-22431.98,0.00026301,2]
[320082455,1711140642478,-976.3,0.00026301,2]
[320082456,1711140642487,-2773.5,0.00026301,2]
[320082458,1711140642498,-1593.63,0.00026301,2]
[320082461,1711140642508,-500.0,0.00026301,2]
[320082463,1711140642518,-500.0,0.00026301,2]
[320082464,1711140642529,-500.0,0.00026301,2]
[320082466,1711140642538,-500.0,0.00026301,2]
[320082468,1711140642548,-577.1,0.00026301,2]
[320082470,1711140642558,-1360.28,0.00026301,2]
[320082472,1711140642567,-506.44,0.00026301,2]
[320082474,1711140642576,-14810.39,0.00026301,2]
[320082476,1711140642585,-500.0,0.00026301,2]
[320082478,1711140642595,-506.13,0.00026301,2]
[320082480,1711140642604,-1708.06,0.00026301,2]
[320082482,1711140642614,-1884.15,0.00026301,2]
[320082484,1711140642623,-1130.23,0.00026301,2]
[320082486,1711140642632,-1200.54,0.00026301,2]
[320082488,1711140642642,-500.0,0.00026301,2]
[320082490,1711140642651,-500.0,0.00026301,2]
[320082492,1711140642661,-500.0,0.00026301,2]
[320082494,1711140642670,-16865.46,0.00026301,2]
[320082497,1711140642680,-17109.37,0.00026301,2]
[320082499,1711140642690,-500.0,0.00026301,2]
[320082501,1711140642699,-802.9,0.00026301,2]
[320082503,1711140642708,-209.72640167,0.00026301,2]
[320082505,1711140642717,-4015.82,0.00026301,2]
[320082506,1711140642727,-500.0,0.00026301,2]
[320082508,1711140642736,-500.0,0.00026301,2]
[320082510,1711140642746,-1572.16,0.00026301,2]
[320082512,1711140642756,-2739.61,0.00026301,2]
[320082515,1711140642767,-500.0,0.00026301,2]
[320082517,1711140642776,-500.0,0.00026301,2]
[320082519,1711140642786,-20662.85,0.00026301,2]
[320082521,1711140642794,-500.0,0.00026301,2]
[320082522,1711140642804,-500.0,0.00026301,2]
[320082525,1711140642813,-1173.64,0.00026301,2]
[320082526,1711140642823,-7084.1,0.00026301,2]
[320082529,1711140642832,-568.95,0.00026301,2]
[320082531,1711140642842,-666.79,0.00026301,2]
[320082532,1711140642851,-500.0,0.00026301,2]
[320082535,1711140642860,-3463.99,0.00026301,2]
[320082537,1711140642869,-500.0,0.00026301,2]
[320082539,1711140642879,-1480.2,0.00026301,2]
[320082540,1711140642888,-500.0,0.00026301,2]
[320082543,1711140642898,-1231.74,0.00026301,2]
[320082545,1711140642907,-1399.16,0.00026301,2]
[320082547,1711140642917,-306.0,0.00026575,2]
[320082548,1711140642926,-153.0,0.00026603,2]
[320082551,1711140642936,-306.0,0.00026603,2]
[320082553,1711140642945,-1500.0,0.00026749,2]
[320082554,1711140642954,-591.71,0.00026849,2]
[320082556,1711140642964,-500.0,0.00026849,2]
[320082558,1711140642974,-500.0,0.00026849,2]